Cogmind - Beta 16.1 @@@ ROGUE MODE // 2026.02.16 @ 21:10:46 Player: Lintence Result: Destroyed by H-61 Shepherd with Heavy Assault Cannon Performance ------------- Evolutions (2) 1000 Regions Visited (3) 600 Robots Destroyed (49) 245 Value Destroyed (1714) 1714 Prototype IDs (2) 40 Alien Tech Used (0) 0 Bonus (4) 4 TOTAL SCORE: 3603 Bonus ------- High Alert Combat Kills 4 Cogmind --------- Core Integrity 0/550 Matter 268/300 Energy 151/160 System Corruption 0% Temperature Cool (0) Movement Core (350) Ox6 Location -8/Materials Parts ------- > --- POWER (1) -------- Light Nuclear Core > --- PROPULSION (4) --- (None) > --- UTILITY (4) ------ Medium Storage Unit Improved Sensor Array Improved Signal Interpreter > --- WEAPON (2) ------- Minigun > --- INVENTORY (10) --- Light Nuclear Core Structural Scanner Melee Analysis Suite Melee Analysis Suite Melee Analysis Suite Heavy Assault Rifle Katana Peak State ------------ > --- POWER ------------ Light Nuclear Core > --- PROPULSION ------- Aluminum Leg Improved Aluminum Leg Carbon-fiber Leg Titanium Leg > --- UTILITY ---------- Improved Heat Sink Medium Storage Unit Improved Sensor Array Improved Signal Interpreter > --- WEAPON ----------- Improved Medium Laser Minigun > --- INVENTORY -------- Light Nuclear Core Light Nuclear Core Aluminum Leg Structural Scanner Melee Analysis Suite Melee Analysis Suite Melee Analysis Suite Improved Light Cannon Rocket Launcher Katana [Rating: 30] Favorites ----------- Power Ion Engine Engine Ion Engine Power Core Light Nuclear Core Propulsion Aluminum Leg Leg Aluminum Leg Flight Unit Improved Flight Unit Utility Medium Storage Unit Device Structural Scanner Storage Medium Storage Unit Processor Improved Signal Interpreter Weapon Assault Rifle Energy Gun Improved Medium Laser Ballistic Gun Assault Rifle Ballistic Cannon Light Cannon Launcher Rocket Launcher Build | -11 -10 -9 -8 ------- Run | Yrd Mat Mat Mat Slots Evolved 4 | . . 2 2 Power . | . . . . Propulsion 2 | . . 1 1 Utility 2 | . . 1 1 Weapon . | . . . . Parts Attached 48 | 8 7 14 19 Power 8 | 2 1 3 2 Engine 6 | 2 1 3 . Core 2 | . . . 2 Reactor . | . . . . Propulsion 21 | 2 4 6 9 Treads . | . . . . Leg 20 | 2 4 5 9 Wheel . | . . . . Hover . | . . . . Flight 1 | . . 1 . Utility 9 | 1 2 2 4 Device 4 | . 1 1 2 Storage 2 | 1 1 . . Processor 3 | . . 1 2 Hackware . | . . . . Protection . | . . . . Artifact . | . . . . Weapon 10 | 3 . 3 4 Energy Gun 3 | . . 1 2 Energy Cannon . | . . . . Ballistic Gun 4 | 3 . . 1 Ballistic Cannon 2 | . . 2 . Launcher 1 | . . . 1 Special Weapon . | . . . . Impact Weapon . | . . . . Slashing Weapon . | . . . . Piercing Weapon . | . . . . Special Melee Weapon . | . . . . Unidentified Prototypes 2 | . . 2 . Parts Lost 19 | . . 5 14 Power 3 | . . 1 2 Propulsion 8 | . . 1 7 Utility 3 | . . 1 2 Weapon 5 | . . 2 3 Highest Loss Streak 9 | . . 3 9 To Critical Strikes . | . . . . Average Backups 8 | 1 4 8 9 Power 2 | . 2 2 2 Propulsion 1 | . 1 3 1 Utility 1 | . . 1 2 Weapon 2 | . 1 1 4 Tool/Special . | . . . . Unused Backups 11 | . 2 . 9 Power 4 | . 1 . 3 Propulsion . | . . . . Utility 3 | . . . 3 Weapon 4 | . 1 . 3 Tool/Special . | . . . . Average Slot Usage (%) 93 | . 96 89 95 Engine 8 | . 14 11 4 Core 1 | . . . 3 Leg 31 | . 28 30 34 Device 12 | . 10 11 13 Storage 10 | . 14 11 9 Processor 5 | . . 2 11 Energy Gun 3 | . . 2 6 Ballistic Gun 10 | . 28 7 4 Ballistic Cannon 7 | . . 12 5 Peak Build Rating 30 | 6 8 15 30 Average Rating 15 | 4 6 10 23 On Entrance 6 | . 6 7 13 Avg Prop Armor Cover (%) . | . . . . Naked Turns . | . . . . Heaviest Build 26 | 14 20 25 26 Greatest Support 55 | 20 20 30 55 Greatest Overweight (x) 2 | 1 . 1 2 Average Overweight (x) . | . . . . Largest Inventory Capacity 10 | 8 10 10 10 Average Capacity 9 | 7 8 10 10 Most Carried 10 | 2 9 10 10 Average Carried 8 | 1 4 8 9 Final Capacity 10 | 8 10 10 10 Final Carried 10 | 2 8 10 7 Class Distribution -------------------- 49% | Mutant 46% | Scavenger-Mutant 3% | Skirmisher Dominant Class ---------------- Mutant | -10/Materials Mutant | -9/Materials Scavenger-Mutant | -8/Materials Resources | -11 -10 -9 -8 ----------- Run | Yrd Mat Mat Mat Matter Collected 1449 | 211 226 407 605 Remotely . | . . . . Salvage Created 1740 | . 195 567 978 Parts 97 | . 12 29 56 Haulers Intercepted 1 | . . 1 . Recyclers Shooed 1 | . . . 1 Parts Field Recycled . | . . . . Retrieved Matter . | . . . . Parts Self-Destructed . | . . . . Prevented . | . . . . Parts Restored . | . . . . Kills | -11 -10 -9 -8 ------- Run | Yrd Mat Mat Mat Combat Hostiles Destroyed 44 | . 4 14 26 Guns 15 | . 4 . 11 Cannons 21 | . . 14 7 AOE 7 | . . . 7 Classes Destroyed 10 | . 3 4 3 Worker 2 | . 1 . 1 Hauler 1 | . . 1 . Operator 1 | . 1 . . Watcher 1 | . . 1 . Swarmer 3 | . . . 3 Cutter 4 | . . . 4 Grunt 25 | . 4 10 11 Brawler 2 | . . . 2 Duelist 3 | . . 1 2 Sentry 7 | . . 3 4 Best Kill Streak 11 | . 5 4 11 Combat Bots Only 11 | . 2 4 11 Max Kills in Single Turn 3 | . 1 1 3 Gunslinging . | . . . . Exploded 3 | . . . 3 Melee . | . . . . Uniques/NPCs Destroyed . | . . . . Combat | -11 -10 -9 -8 -------- Run | Yrd Mat Mat Mat Hostile Shots Fired 239 | . 20 77 142 Missed 72 | . 4 24 44 Hits 167 | . 16 53 98 Melee 14 | . . 4 10 Projectile 153 | . 16 49 88 AOE 1 | . . . 1 Critical Strikes 8 | . . 3 5 Damage Taken 3158 | . 203 778 2177 Core 705 | . 11 125 569 Absorbed by Shields . | . . . . Regen/Repaired (Parts) 114 | . . 114 . Core Remaining (%) 87 | 100 95 68 . Volleys Fired 139 | . 23 44 72 Largest 2 | . 2 2 2 Hottest 106 | . 40 89 106 Shots Fired 267 | . 46 88 133 Gun 175 | . 46 42 87 Cannon 86 | . . 46 40 Launcher 6 | . . . 6 Special . | . . . . Kinetic 213 | . 46 85 82 Thermal 44 | . . 3 41 Explosive 6 | . . . 6 Electromagnetic 4 | . . . 4 Robot Hit Streak 20 | . 9 20 13 Robot Miss Streak 4 | . 4 2 3 Penetration Max . | . . . . Secondary Targets 2 | . 1 . 1 Max Gunslinging Chain 1 | . 1 . 1 Shots Hit Robots 188 | . 29 70 89 Core Hits 84 | . 13 26 45 Critical Kills . | . . . . Critical Parts Destroyed . | . . . . Critical Strikes 7 | . . 1 6 Burn 5 | . . . 5 Blast 2 | . . 1 1 Melee Attacks . | . . . . Impact . | . . . . Slashing . | . . . . Piercing . | . . . . Sneak Attacks . | . . . . Combat Hostiles . | . . . . Follow-up Attacks . | . . . . Damage Inflicted 3328 | . 355 965 2008 Guns 1813 | . 352 321 1140 Cannons 1131 | . . 638 493 Explosions 375 | . . . 375 Melee . | . . . . Ramming 9 | . 3 6 . Kinetic 2320 | . 352 925 1043 Thermal 571 | . . 34 537 Explosive 375 | . . . 375 Electromagnetic 53 | . . . 53 Impact . | . . . . Slashing . | . . . . Piercing . | . . . . Highest Corruption . | . . . . Average Corruption . | . . . . Corruption Purged . | . . . . Corruption Blocked . | . . . . Overload Shots . | . . . . Overflow Damage 21 | . . . 21 Projectiles . | . . . . Explosions 21 | . . . 21 Melee . | . . . . Knockbacks 12 | . . 8 4 Impact . | . . . . Kinetic 9 | . . 6 3 Secondary 3 | . . 2 1 Self-Inflicted Damage 116 | . . . 116 Shots 3 | . . . 3 Rammed . | . . . . Targets Rammed 4 | . 1 3 . Kicked 4 | . 1 3 . Crushed . | . . . . Highest Temperature 209 | . 2 35 209 Average Temperature 36 | . 2 8 50 Received Heat Transfer 1098 | . 111 357 630 Effects 1 | . . . 1 Energy Bleed 1 | . . . 1 Siege Activations . | . . . . Martial Activations . | . . . . Shielding Activations . | . . . . Robots Disrupted . | . . . . Combat Hostiles . | . . . . Robots Corrupted . | . . . . Combat Hostiles . | . . . . Parts Fried . | . . . . Impact Corruptions . | . . . . Robots Melted 1 | . . . 1 Combat Hostiles 1 | . . . 1 Parts Melted 1 | . . . 1 Heat Transferred 1591 | . . 74 1517 Parts Sabotaged . | . . . . Parts Stolen . | . . . . Parts Stripped . | . . . . Power Chain Reactions . | . . . . Alert | -11 -10 -9 -8 ------- Run | Yrd Mat Mat Mat Maximum Alert Level 2 | . . . 2 Low Security (%) 68 | 100 100 100 25 Level 1 30 | . . . 72 Level 2 . | . . . 1 Level 3 . | . . . . Level 4 . | . . . . Level 5 . | . . . . High Security . | . . . . Max Security . | . . . . Peak Influence 413 | . 95 184 413 Initial 65 | . . 22 65 Average 145 | . 38 104 241 Influence Increases 1230 | . 129 389 712 Destroy 0b10 Robot/C 880 | . 80 280 520 Destroy 0b10 Robot/NC 25 | . 10 10 5 Destroy Leader 194 | . 20 74 100 Successful Hack 33 | . 4 24 5 Disable Machine 30 | . . . 30 Destroy Structure 38 | . . 1 37 Lose Combat Pursuer 30 | . 15 . 15 Influence Decreases 855 | . 74 290 491 Entered New Map 122 | . . 33 89 Time Decay 556 | . 74 220 262 Lost Part 177 | . . 37 140 Squads Dispatched 6 | . 1 2 3 Investigation 1 | . . 1 . Extermination . | . . . . Reinforcement 5 | . 1 1 3 Assault . | . . . . Garrison . | . . . . Intercept . | . . . . Searches Triggered . | . . . . Construction Impeded . | . . . . Haulers Reinforced . | . . . . Active Scanning Responses . | . . . . Cargo Convoy Interrupts . | . . . . Stealth | -11 -10 -9 -8 --------- Run | Yrd Mat Mat Mat Distress Signals 4 | . 1 2 1 Communications Jammed . | . . . . Distress Signals . | . . . . Times Spotted 57 | . 8 16 33 Peak Tracking Total 7 | . 3 7 5 Tactical Retreats 2 | . 1 . 1 Traps | -11 -10 -9 -8 ------- Run | Yrd Mat Mat Mat Traps Triggered 2 | . . 1 1 Indirectly . | . . . . Trap Hack Attempts . | . . . . Triggered . | . . . . Disarmed . | . . . . Reprogrammed . | . . . . Reused . | . . . . Traps Extracted . | . . . . Installed . | . . . . Triggered . | . . . . Machines | -11 -10 -9 -8 ---------- Run | Yrd Mat Mat Mat Machines Disabled 2 | . . . 2 Max in Single Turn 1 | . . . 1 Machines Repaired . | . . . . Machines Dismantled . | . . . . Machines Sabotaged . | . . . . Overloaded Fab Kills . | . . . . Hacking | -11 -10 -9 -8 --------- Run | Yrd Mat Mat Mat Machines Accessed 9 | . 1 6 2 Terminals 7 | . 1 5 1 Fabricators . | . . . . Repair Stations 1 | . . 1 . Recycling Units . | . . . . Scanalyzers 1 | . . . 1 Garrison Access . | . . . . Total Hacks 23 | . 2 17 4 Successful 11 | . 2 7 2 Failed 12 | . . 10 2 Catastrophic . | . . . . Database Lockouts . | . . . . Manual 15 | . . 12 3 Terminals 18 | . 2 13 3 Fabricators . | . . . . Repair Stations 4 | . . 4 . Recycling Units . | . . . . Scanalyzers 1 | . . . 1 Garrison Access . | . . . . Terminal Hacks 3 | . 2 1 . Terminal Index 1 | . . 1 . Locate Traps 1 | . 1 . . Zone Layout 1 | . 1 . . Fabricator Hacks . | . . . . Repair Station Hacks 2 | . . 2 . Scan Component 1 | . . 1 . Repair 1 | . . 1 . Recycling Unit Hacks . | . . . . Scanalyzer 1 | . . . 1 Retrieve Study 1 | . . . 1 Garrison Access Hacks . | . . . . Unauthorized Hacks 5 | . . 4 1 Terminals 5 | . . 4 1 Botnet 5 | . . 4 1 Fabricators . | . . . . Repair Stations . | . . . . Recycling Units . | . . . . Scanalyzers . | . . . . Garrison Access . | . . . . Data Cores Recovered . | . . . . Used . | . . . . Hacking Detections 8 | . 1 5 2 Full Trace Events . | . . . . Feedback Events . | . . . . Feedback Blocked . | . . . . Robot Schematics Acquired . | . . . . Robots Built . | . . . . Authchips . | . . . . Time . | . . . . Total Robot Build Rating . | . . . . Part Schematics Acquired . | . . . . Parts Built . | . . . . Authchips . | . . . . Time . | . . . . Total Part Build Rating . | . . . . Part Studies Acquired 1 | . . . 1 Parts Repaired 1 | . . 1 . Time 13 | . . 13 . Parts Recycled . | . . . . Recycled Matter . | . . . . Retrieved Matter . | . . . . Retrieved Components . | . . . . Parts Scanalyzed . | . . . . Part Schematics Acquired . | . . . . Parts Damaged . | . . . . Bothacking | -11 -10 -9 -8 ------------ Run | Yrd Mat Mat Mat Used RIF Installer . | . . . . Robots Hacked . | . . . . Non-combat . | . . . . Combat . | . . . . Robot Hacks Applied . | . . . . Relay Couplers Released . | . . . . Fabnet Peak Effective % . | . . . . Robots Rewired . | . . . . Allies Hacked . | . . . . Hacks Repelled . | . . . . Allies | -11 -10 -9 -8 -------- Run | Yrd Mat Mat Mat Total Allies . | . . . . Largest Group . | . . . . Highest-Rated Group . | . . . . Highest-Rated Ally . | . . . . Total Orders . | . . . . Ally Attacks . | . . . . Total Damage . | . . . . Kills . | . . . . Allies Corrupted . | . . . . Allies Melted . | . . . . Intel | -11 -10 -9 -8 ------- Run | Yrd Mat Mat Mat Active Infowar (turns) 1244 | . 183 496 565 Optics 180 | . . 115 65 Sensors 498 | . . . 498 Structural 810 | . 183 496 131 Robot Analysis Total . | . . . . Derelict Logs Recovered . | . . . . Drone Launches . | . . . . Drone Recoveries . | . . . . Exploration | -11 -10 -9 -8 ------------- Run | Yrd Mat Mat Mat Turns Passed 1351 | 53 237 496 565 Spaces Moved 644 | 33 125 230 256 Core 1 | 1 . . . Treads . | . . . . Legs 643 | 32 125 230 256 Wheels . | . . . . Hover . | . . . . Flight . | . . . . Fastest Speed 50 | 50 120 120 105 Average Speed 120 | 124 120 124 116 Slowest Speed 245 | 190 120 190 245 Overloaded Moves . | . . . . Propulsion Burnouts . | . . . . Robots Hopped . | . . . . Potential Cave-ins . | . . . . Cave-ins Triggered . | . . . . Exploration Rate (%) 24 | 4 32 30 33 Regions Visited 3 Branch Regions . Pre-discovered Areas . | . . . . Known Exits Taken . | . . . . Unknown Exits Taken 3 | 1 1 1 . Scrap Searched . | . . . . Spaces Dug . | . . . . Terrain Destroyed 53 | . . . 53 Melee . | . . . . Projectile . | . . . . AOE 53 | . . . 53 Terrain Rammed . | . . . . Walls Destroyed . | . . . . Machines Disabled . | . . . . Actions | -11 -10 -9 -8 --------- Run | Yrd Mat Mat Mat Total 964 | 41 166 356 401 Wait 67 | 1 1 49 16 Move 641 | 32 124 229 256 Hop . | . . . . Pick Up 20 | . 5 4 11 Fast Attach 21 | 6 1 7 7 Attach 11 | . . 4 7 Detach 3 | . . 2 1 Swap 29 | 2 6 7 14 Drop 29 | . 5 7 17 Fire 139 | . 23 44 72 Melee . | . . . . Ram . | . . . . Kick 4 | . 1 3 . Crush . | . . . . Escape Stasis . | . . . . Rewire . | . . . . Trap . | . . . . Miscellaneous . | . . . . Route ------- -11/Scrapyard -10/Materials -9/Materials (discovered 2 exits: *Mat / [*Min]) -8/Materials (discovered 1 exit: [*Fac]) History --------- Turn | Location | Event 20 | -11/Scrapyard | Discovered new exit (range 15) 54 | -11/Scrapyard | Entered Materials 272 | -10/Materials | Discovered new exit (range 12) 291 | -10/Materials | Entered another Materials area 291 | -9/Materials | Evolved 2 slots: Propulsion x1, Utility x1 307 | -9/Materials | Build established: Mutant 390 | -9/Materials | Lost 3 parts (1u2w) 655 | -9/Materials | Discovered new exit (range 16) 734 | -9/Materials | Repaired Lgt. Cannon 780 | -9/Materials | Discovered new exit (range 5) 787 | -9/Materials | Entered another Materials area 787 | -8/Materials | Evolved 2 slots: Propulsion x1, Utility x1 991 | -8/Materials | Destroyed 11 combat bots 1118 | -8/Materials | Lost 3 parts (1p1n1u) 1330 | -8/Materials | Core integrity fell below 50% 1341 | -8/Materials | Core integrity fell below 20% 1344 | -8/Materials | Discovered new exit (range 16) 1352 | -8/Materials | Destroyed by H-61 Shepherd with Heavy Assault Cannon Last Messages --------------- 01334_ Rocket Launcher destroyed. 01334_ Destroyed Rocket Launcher. 01335_ T-07 Excavator is excavating. 01336_ Acquired 13 matter. 01337_ K-01 Serf collects debris. 01339_ T-07 Excavator is excavating. 01340_ Aluminum Leg+ destroyed. 01341_ R-06 Scavenger collects Heat Sink. 01343_ The unstable cave ceiling collapses. 01343_ T-07 Excavator is excavating. 01344_ R-06 Scavenger collects Hammer. 01344_ EXIT=FOUND 01344_ Imp. Aluminum Leg destroyed. 01345_ R-06 Scavenger collects Imp. Ion Engine. 01348_ T-07 Excavator is excavating. 01349_ Aluminum Leg+ destroyed. 01349_ Imp. Medium Laser destroyed. 01351_ H-61 Shepherd calls for reinforcements. 01351_ ALERT: Hostile activity reported, dispatching reinforcements to area. Map ----- +----------------------------------------------------+ | ??????###### #### #????# #??????? | | ???????????# ####??#######????# [ = #??????? | | ???????????# #????????????????###########??????? | | ???????????# ########??????????????????????????? | | ???????????# #??????????????????????????? | | ???????????# #??????????????????????????? | | ???????????# #??????????????????????????? | | ???????????## ##### #??????????????????????????? | | ????????#####+##### #??????????????????????????? | | ????????# # #??????????????????????????? | | ????????# # ########???????????????????? | | ????????# # # #???????????????????? | | ????????# + *%# """ #???????????????????? | | ????????# # r/#%""" #???????????????????? | | ????????# # !=+%""" #???????????????????? | | ????????# # !#! #???????????????????? | | ????????# # #* "T" #???????????????????? | | ????????###########u ########???????????????????? | | ???????????######## #??????????????????????????? | | ???????????# # #??????????????????????????? | | ???????????# # ##??#######????????????????? | | ???????????# " #??!!!!]]#????????????????? | | ???????????# T % #??!!!!]]#????????????????? | | ???????????# " ### #????????????????? | | ???????????# %= % ##???????????????? | | ???????????###### = = @ #????????? | | ????????????????# % % H< #????????? | | ????????????????# % #????????? | | ????????????????# # ##########?????????? | | ????????????????###### t ?????????????????? | | ?????????????????????# ##????????????????? | | ?????????????????????# #####?????????????????? | | ?????????????????????### ##?????????????????????? | | ???????????????????????####??????????????????????? | | ?????????????????????????????????????????????????? | | ?????????????????????????????????????????????????? | | | | | | | | | | | | | | | | | | | | | | | | | | | | | +----------------------------------------------------+ Best States ------------- Heat Dissipation 50 Energy Generation 14 Energy Capacity 265 Matter Stores 300 Matter Capacity 300 Sight Range 18 Robot Scan Range 15 Terrain Scan Density 10 Evasion (%) 55 Targeting Accuracy 8 Item Schematics ----------------- None Robot Schematics ------------------ None Fabricated ------------ Nothing Repaired ---------- Lgt. Cannon | 5% | -9/Materials Studied --------- Aluminum Leg | -8/Materials | Hacked Alien Tech Used ----------------- None Achievements -------------- None Challenges ------------ None Game ------ Seed NetworkedPhaseTrap Manual? 0 Play Time 00:20:15 Cumulative 87.1 hours Start 2026.02.16 @ 20:52:47 End 2026.02.16 @ 21:10:46 Sessions 1 Manual Loads 0 Difficulty Rogue Special Mode None Game No. 171 Rogue 171 Adventurer 0 Explorer 0 Win Type - Total 1 Types 1/0/0/0/0/0/0/0/0/0 Lore% 26 Gallery% 35 Achievement% 26 Wizard Run 0 Options --------- Layout 1 ASCII 0 Keyboard 0 Movement Mouse Keybinds 0 Fullscreen 2 Font 20/X11 Map View 50x35 Zoom Use 0% Tactical HUD 1 Map Filters NONE Filters NONE Steam 1 RUN: 093daace-ab55-41ce-8a7d-c3a5c01fb662